Workbook

Sheet Ремонт
A2: № п/п | B2: Период проведения работ | C2: Улица | D2: № дома | E2: Фамилия И.О. | F2: Виды работ | G2: ПСД, 1 % | H2: Заработанная плата, руб. | I2: Начисления (сметная прибыль), руб. | J2: Материал +ТЗР 4%, руб. | K2: ЭММ, в т.ч. ЗПМ (общеэксплуатационные расходы), руб. | L2: Прочие (накладные расходы), руб. | M2: возмещение НДС, руб. | N2: Итого (без НДС), руб. | O2: Итого (с НДС), руб.
A3: =IF(ISBLANK(B3),"",MAX(A$2:A2)+1) -> 1 | B3: 2016-02-01 | C3: 40 лет Победы | D3: 94 | E3: Иванов И.И. | F3: Установка ОДПУ горячей воды 2 шт. | G3: 6.21 | H3: 217.79 | I3: 106.7 | J3: 116.16 | K3: 0.68 | L3: 179.97 | N3: =SUM(G3:L3) -> 627.51 | O3: =N3*1.18 -> 740.4618
A4: =IF(ISBLANK(B4),"",MAX(A$2:A3)+1) -> 2 | B4: 2016-02-01 | C4: Белинского | D4: 28 | E4: Петров П.П. | F4: Проверка ИПУ ХВС | G4: 7 | H4: 222 | I4: 100 | J4: 555 | K4: 0.67 | L4: 150.1 | N4: 1034.77 | O4: 1221.0286
A5: =IF(ISBLANK(B5),"",MAX(A$2:A4)+1) -> 3 | B5: 2016-05-01 | C5: 40 лет Победы | D5: 94 | E5: Иванов И.И. | F5: Ремонт кровли (подъезд №1, кв. 37, 60) | G5: 6.21 | H5: 150 | I5: 200 | J5: 51.25 | K5: 0.68 | L5: 18 | N5: 426.14 | O5: 502.8452
A6: =IF(ISBLANK(B6),"",MAX(A$2:A5)+1) -> 4 | B6: 2016-06-01 | C6: 40 лет Победы | D6: 94 | E6: Иванов И.И. | F6: Текущий ремонт электроосвещения в подъездах №2 и №3 | G6: 6.22 | H6: 1256.25 | I6: 240 | J6: 4025 | K6: 0.67 | L6: 248 | N6: 5776.14 | O6: 6815.8452
A7: =IF(ISBLANK(B7),"",MAX(A$2:A6)+1) -> 5 | B7: 2016-06-01 | C7: Белинского | D7: 28 | E7: Петров П.П. | F7: Ремонт откосов | G7: 6.21 | H7: 12548 | I7: 256 | J7: 456 | K7: 0.78 | L7: 300 | N7: 13566.99 | O7: 16009.0482
A8: =IF(ISBLANK(B8),"",MAX(A$2:A7)+1) -> 6 | B8: 2016-07-01 | C8: Белинского | D8: 30 | E8: Петров П.П. | F8: Ремонт откосов | G8: 6.21 | H8: 12546 | I8: 255 | J8: 454 | K8: 10 | L8: 200 | N8: 13471.21 | O8: 15896.0278
A9: =IF(ISBLANK(B9),"",MAX(A$2:A8)+1) -> 7 | B9: 2016-07-01 | C9: 40 лет Победы | D9: 36 | E9: Иванов И.И. | F9: Ремонт кровли | G9: 6.21 | H9: 4000 | I9: 500 | J9: 3000 | K9: 52 | L9: 2000 | N9: 9558.21 | O9: 11278.6878
A10: =IF(ISBLANK(B10),"",MAX(A$2:A9)+1) -> 8 | B10: 2016-07-01 | C10: 40 лет Победы | D10: 100 | E10: Иванов И.И. | F10: Ремонт контейнерных площадок | G10: 6.21 | H10: 2547 | I10: 200 | J10: 1234 | K10: 0.67 | L10: 600 | N10: 4587.88 | O10: 5413.6984

Sheet Сводка
A1: Отчет о начислениях по текущему ремонту МЖД за 2016 год
A2: Наименование улицы | B2: № дома | C2: Остаток средств по текущему ремонту на 01.01.2016 г., руб. | D2: Начислено за 2016 г., руб.
A3: 40 лет Победы | B3: 36 | C3: 56241.58
A4: 40 лет Победы | B4: 94 | C4: -52734.9 | D4: 1000
A5: Белинского | B5: 28 | C5: 371412.5698 | D5: 222184.95
A6: Белинского | B6: 30 | C6: 119937.66 | D6: 110705.16
A7: ИТОГО | C7: =SUM(C4:C6) -> 438615.3298 | D7: =SUM(D4:D6) -> 333890.11

Sheet Сводная
A1: Sum of Итого (с НДС), руб.
A2: Улица | B2: № дома | C2: Период проведения работ | D2: Виды работ | E2: Total
A3: 40 лет Победы | B3: 36 | C3: 2016-07-01 | D3: Ремонт кровли | E3: 11278.6878
A4: 40 лет Победы | B4: 94 | C4: 2016-02-01 | D4: Установка ОДПУ горячей воды 2 шт. | E4: 740.4618
A5: 40 лет Победы | B5: 94 | C5: 2016-05-01 | D5: Ремонт кровли (подъезд №1, кв. 37, 60) | E5: 502.8452
A6: 40 лет Победы | B6: 94 | C6: 2016-06-01 | D6: Текущий ремонт электроосвещения в подъездах №2 и №3 | E6: 6815.8452
A7: 40 лет Победы | B7: 100 | C7: 2016-07-01 | D7: Ремонт контейнерных площадок | E7: 5413.6984
A8: Белинского | B8: 28 | C8: 2016-02-01 | D8: Проверка ИПУ ХВС | E8: 1221.0286
A9: Белинского | B9: 28 | C9: 2016-06-01 | D9: Ремонт откосов | E9: 16009.0482
A10: Белинского | B10: 30 | C10: 2016-07-01 | D10: Ремонт откосов | E10: 15896.0278

Sheet ОТЧЁТ
A1: Список домов на 2016
A2: Наименование улицы | B2: № дома | C2: Остаток средств по текущему ремонту на 01.01.2016 г., руб. | D2: Начислено за 2016 г., руб. | E2: Выполнено работ по текущему ремонту, руб. | F2: Месяц | G2: Описание работ | H2: Стоимость, руб. | I2: Остаток средств по текущему ремонту на 01.01.2017 г., руб.
A3: =IF(Сводная!A3<>0,Сводная!A3,IF(Сводная!A2<>0,"ИТОГО:","")) -> 40 лет Победы | B3: =IF(Сводная!B3>0,Сводная!B3,"") -> 36 | C3: =IF(A3="ИТОГО:",SUM(C2:C$3),IF($B3<>$B2,SUMIFS(Взносы[Остаток средств по текущему ремонту на 01.01.2016 г., руб.],Взносы[Наименование улицы],$A3,Взносы[№ дома],$B3),0)) -> 56241.58 | D3: =IF(A3="ИТОГО:",SUM(D2:D$3),IF($B3<>$B2,SUMIFS(Взносы[Начислено за 2016 г., руб.],Взносы[Наименование улицы],$A3,Взносы[№ дома],$B3),0)) -> 0 | E3: =IF(B3=B2,,SUMIFS(Сводная!E:E,Сводная!A:A,A3,Сводная!B:B,B3)) -> 11278.6878 | F3: =IF(Сводная!C3>0,Сводная!C3,"") -> 2016-07-01 | G3: =IF(Сводная!D3>0,Сводная!D3,"") -> Ремонт кровли | H3: =IF(Сводная!E3>0,Сводная!E3,"") -> 11278.6878 | I3: =IF(B3=B2,,C3+D3-E3) -> 44962.8922
A4: =IF(Сводная!A4<>0,Сводная!A4,IF(Сводная!A3<>0,"ИТОГО:","")) -> 40 лет Победы | B4: =IF(Сводная!B4>0,Сводная!B4,"") -> 94 | C4: =IF(A4="ИТОГО:",SUM(C$3:C3),IF($B4<>$B3,SUMIFS(Взносы[Остаток средств по текущему ремонту на 01.01.2016 г., руб.],Взносы[Наименование улицы],$A4,Взносы[№ дома],$B4),0)) -> -52734.9 | D4: =IF(A4="ИТОГО:",SUM(D$3:D3),IF($B4<>$B3,SUMIFS(Взносы[Начислено за 2016 г., руб.],Взносы[Наименование улицы],$A4,Взносы[№ дома],$B4),0)) -> 1000 | E4: =IF(B4=B3,,SUMIFS(Сводная!E:E,Сводная!A:A,A4,Сводная!B:B,B4)) -> 8059.1522 | F4: =IF(Сводная!C4>0,Сводная!C4,"") -> 2016-02-01 | G4: =IF(Сводная!D4>0,Сводная!D4,"") -> Установка ОДПУ горячей воды 2 шт. | H4: =IF(Сводная!E4>0,Сводная!E4,"") -> 740.4618 | I4: =IF(B4=B3,,C4+D4-E4) -> -59794.0522
A5: =IF(Сводная!A5<>0,Сводная!A5,IF(Сводная!A4<>0,"ИТОГО:","")) -> 40 лет Победы | B5: =IF(Сводная!B5>0,Сводная!B5,"") -> 94 | C5: =IF(A5="ИТОГО:",SUM(C$3:C4),IF($B5<>$B4,SUMIFS(Взносы[Остаток средств по текущему ремонту на 01.01.2016 г., руб.],Взносы[Наименование улицы],$A5,Взносы[№ дома],$B5),0)) -> 0 | D5: =IF(A5="ИТОГО:",SUM(D$3:D4),IF($B5<>$B4,SUMIFS(Взносы[Начислено за 2016 г., руб.],Взносы[Наименование улицы],$A5,Взносы[№ дома],$B5),0)) -> 0 | E5: =IF(B5=B4,,SUMIFS(Сводная!E:E,Сводная!A:A,A5,Сводная!B:B,B5)) -> 0 | F5: =IF(Сводная!C5>0,Сводная!C5,"") -> 2016-05-01 | G5: =IF(Сводная!D5>0,Сводная!D5,"") -> Ремонт кровли (подъезд №1, кв. 37, 60) | H5: =IF(Сводная!E5>0,Сводная!E5,"") -> 502.8452 | I5: =IF(B5=B4,,C5+D5-E5) -> 0
A6: =IF(Сводная!A6<>0,Сводная!A6,IF(Сводная!A5<>0,"ИТОГО:","")) -> 40 лет Победы | B6: =IF(Сводная!B6>0,Сводная!B6,"") -> 94 | C6: =IF(A6="ИТОГО:",SUM(C$3:C5),IF($B6<>$B5,SUMIFS(Взносы[Остаток средств по текущему ремонту на 01.01.2016 г., руб.],Взносы[Наименование улицы],$A6,Взносы[№ дома],$B6),0)) -> 0 | D6: =IF(A6="ИТОГО:",SUM(D$3:D5),IF($B6<>$B5,SUMIFS(Взносы[Начислено за 2016 г., руб.],Взносы[Наименование улицы],$A6,Взносы[№ дома],$B6),0)) -> 0 | E6: =IF(B6=B5,,SUMIFS(Сводная!E:E,Сводная!A:A,A6,Сводная!B:B,B6)) -> 0 | F6: =IF(Сводная!C6>0,Сводная!C6,"") -> 2016-06-01 | G6: =IF(Сводная!D6>0,Сводная!D6,"") -> Текущий ремонт электроосвещения в подъездах №2 и №3 | H6: =IF(Сводная!E6>0,Сводная!E6,"") -> 6815.8452 | I6: =IF(B6=B5,,C6+D6-E6) -> 0
A7: =IF(Сводная!A7<>0,Сводная!A7,IF(Сводная!A6<>0,"ИТОГО:","")) -> 40 лет Победы | B7: =IF(Сводная!B7>0,Сводная!B7,"") -> 100 | C7: =IF(A7="ИТОГО:",SUM(C$3:C6),IF($B7<>$B6,SUMIFS(Взносы[Остаток средств по текущему ремонту на 01.01.2016 г., руб.],Взносы[Наименование улицы],$A7,Взносы[№ дома],$B7),0)) -> 0 | D7: =IF(A7="ИТОГО:",SUM(D$3:D6),IF($B7<>$B6,SUMIFS(Взносы[Начислено за 2016 г., руб.],Взносы[Наименование улицы],$A7,Взносы[№ дома],$B7),0)) -> 0 | E7: =IF(B7=B6,,SUMIFS(Сводная!E:E,Сводная!A:A,A7,Сводная!B:B,B7)) -> 5413.6984 | F7: =IF(Сводная!C7>0,Сводная!C7,"") -> 2016-07-01 | G7: =IF(Сводная!D7>0,Сводная!D7,"") -> Ремонт контейнерных площадок | H7: =IF(Сводная!E7>0,Сводная!E7,"") -> 5413.6984 | I7: =IF(B7=B6,,C7+D7-E7) -> -5413.6984
A8: =IF(Сводная!A8<>0,Сводная!A8,IF(Сводная!A7<>0,"ИТОГО:","")) -> Белинского | B8: =IF(Сводная!B8>0,Сводная!B8,"") -> 28 | C8: =IF(A8="ИТОГО:",SUM(C$3:C7),IF($B8<>$B7,SUMIFS(Взносы[Остаток средств по текущему ремонту на 01.01.2016 г., руб.],Взносы[Наименование улицы],$A8,Взносы[№ дома],$B8),0)) -> 371412.5698 | D8: =IF(A8="ИТОГО:",SUM(D$3:D7),IF($B8<>$B7,SUMIFS(Взносы[Начислено за 2016 г., руб.],Взносы[Наименование улицы],$A8,Взносы[№ дома],$B8),0)) -> 222184.95 | E8: =IF(B8=B7,,SUMIFS(Сводная!E:E,Сводная!A:A,A8,Сводная!B:B,B8)) -> 17230.0768 | F8: =IF(Сводная!C8>0,Сводная!C8,"") -> 2016-02-01 | G8: =IF(Сводная!D8>0,Сводная!D8,"") -> Проверка ИПУ ХВС | H8: =IF(Сводная!E8>0,Сводная!E8,"") -> 1221.0286 | I8: =IF(B8=B7,,C8+D8-E8) -> 576367.443
A9: =IF(Сводная!A9<>0,Сводная!A9,IF(Сводная!A8<>0,"ИТОГО:","")) -> Белинского | B9: =IF(Сводная!B9>0,Сводная!B9,"") -> 28 | C9: =IF(A9="ИТОГО:",SUM(C$3:C8),IF($B9<>$B8,SUMIFS(Взносы[Остаток средств по текущему ремонту на 01.01.2016 г., руб.],Взносы[Наименование улицы],$A9,Взносы[№ дома],$B9),0)) -> 0 | D9: =IF(A9="ИТОГО:",SUM(D$3:D8),IF($B9<>$B8,SUMIFS(Взносы[Начислено за 2016 г., руб.],Взносы[Наименование улицы],$A9,Взносы[№ дома],$B9),0)) -> 0 | E9: =IF(B9=B8,,SUMIFS(Сводная!E:E,Сводная!A:A,A9,Сводная!B:B,B9)) -> 0 | F9: =IF(Сводная!C9>0,Сводная!C9,"") -> 2016-06-01 | G9: =IF(Сводная!D9>0,Сводная!D9,"") -> Ремонт откосов | H9: =IF(Сводная!E9>0,Сводная!E9,"") -> 16009.0482 | I9: =IF(B9=B8,,C9+D9-E9) -> 0
A10: =IF(Сводная!A10<>0,Сводная!A10,IF(Сводная!A9<>0,"ИТОГО:","")) -> Белинского | B10: =IF(Сводная!B10>0,Сводная!B10,"") -> 30 | C10: =IF(A10="ИТОГО:",SUM(C$3:C9),IF($B10<>$B9,SUMIFS(Взносы[Остаток средств по текущему ремонту на 01.01.2016 г., руб.],Взносы[Наименование улицы],$A10,Взносы[№ дома],$B10),0)) -> 119937.66 | D10: =IF(A10="ИТОГО:",SUM(D$3:D9),IF($B10<>$B9,SUMIFS(Взносы[Начислено за 2016 г., руб.],Взносы[Наименование улицы],$A10,Взносы[№ дома],$B10),0)) -> 110705.16 | E10: =IF(B10=B9,,SUMIFS(Сводная!E:E,Сводная!A:A,A10,Сводная!B:B,B10)) -> 15896.0278 | F10: =IF(Сводная!C10>0,Сводная!C10,"") -> 2016-07-01 | G10: =IF(Сводная!D10>0,Сводная!D10,"") -> Ремонт откосов | H10: =IF(Сводная!E10>0,Сводная!E10,"") -> 15896.0278 | I10: =IF(B10=B9,,C10+D10-E10) -> 214746.7922
A11: =IF(Сводная!A11<>0,Сводная!A11,IF(Сводная!A10<>0,"ИТОГО:","")) -> ИТОГО: | B11: =IF(Сводная!B11>0,Сводная!B11,"") ->  | C11: =IF(A11="ИТОГО:",SUM(C$3:C10),IF($B11<>$B10,SUMIFS(Взносы[Остаток средств по текущему ремонту на 01.01.2016 г., руб.],Взносы[Наименование улицы],$A11,Взносы[№ дома],$B11),0)) -> 494856.9098 | D11: =IF(A11="ИТОГО:",SUM(D$3:D10),IF($B11<>$B10,SUMIFS(Взносы[Начислено за 2016 г., руб.],Взносы[Наименование улицы],$A11,Взносы[№ дома],$B11),0)) -> 333890.11 | E11: =IF(B11=B10,,SUMIFS(Сводная!E:E,Сводная!A:A,A11,Сводная!B:B,B11)) -> 0 | F11: =IF(Сводная!C11>0,Сводная!C11,"") ->  | G11: =IF(Сводная!D11>0,Сводная!D11,"") ->  | H11: =IF(Сводная!E11>0,Сводная!E11,"") ->  | I11: =IF(B11=B10,,C11+D11-E11) -> 828747.0198
A12: =IF(Сводная!A12<>0,Сводная!A12,IF(Сводная!A11<>0,"ИТОГО:","")) ->  | B12: =IF(Сводная!B12>0,Сводная!B12,"") ->  | C12: =IF(A12="ИТОГО:",SUM(C$3:C11),IF($B12<>$B11,SUMIFS(Взносы[Остаток средств по текущему ремонту на 01.01.2016 г., руб.],Взносы[Наименование улицы],$A12,Взносы[№ дома],$B12),0)) -> 0 | D12: =IF(A12="ИТОГО:",SUM(D$3:D11),IF($B12<>$B11,SUMIFS(Взносы[Начислено за 2016 г., руб.],Взносы[Наименование улицы],$A12,Взносы[№ дома],$B12),0)) -> 0 | E12: =IF(B12=B11,,SUMIFS(Сводная!E:E,Сводная!A:A,A12,Сводная!B:B,B12)) -> 0 | F12: =IF(Сводная!C12>0,Сводная!C12,"") ->  | G12: =IF(Сводная!D12>0,Сводная!D12,"") ->  | H12: =IF(Сводная!E12>0,Сводная!E12,"") ->  | I12: =IF(B12=B11,,C12+D12-E12) -> 0
A13: =IF(Сводная!A13<>0,Сводная!A13,IF(Сводная!A12<>0,"ИТОГО:","")) ->  | B13: =IF(Сводная!B13>0,Сводная!B13,"") ->  | C13: =IF(A13="ИТОГО:",SUM(C$3:C12),IF($B13<>$B12,SUMIFS(Взносы[Остаток средств по текущему ремонту на 01.01.2016 г., руб.],Взносы[Наименование улицы],$A13,Взносы[№ дома],$B13),0)) -> 0 | D13: =IF(A13="ИТОГО:",SUM(D$3:D12),IF($B13<>$B12,SUMIFS(Взносы[Начислено за 2016 г., руб.],Взносы[Наименование улицы],$A13,Взносы[№ дома],$B13),0)) -> 0 | E13: =IF(B13=B12,,SUMIFS(Сводная!E:E,Сводная!A:A,A13,Сводная!B:B,B13)) -> 0 | F13: =IF(Сводная!C14>0,Сводная!C14,"") ->  | G13: =IF(Сводная!D13>0,Сводная!D13,"") ->  | H13: =IF(Сводная!E13>0,Сводная!E13,"") ->  | I13: =IF(B13=B12,,C13+D13-E13) -> 0
A14: =IF(Сводная!A14<>0,Сводная!A14,IF(Сводная!A13<>0,"ИТОГО:","")) ->  | B14: =IF(Сводная!B14>0,Сводная!B14,"") ->  | C14: =IF(A14="ИТОГО:",SUM(C$3:C13),IF($B14<>$B13,SUMIFS(Взносы[Остаток средств по текущему ремонту на 01.01.2016 г., руб.],Взносы[Наименование улицы],$A14,Взносы[№ дома],$B14),0)) -> 0 | D14: =IF(A14="ИТОГО:",SUM(D$3:D13),IF($B14<>$B13,SUMIFS(Взносы[Начислено за 2016 г., руб.],Взносы[Наименование улицы],$A14,Взносы[№ дома],$B14),0)) -> 0 | E14: =IF(B14=B13,,SUMIFS(Сводная!E:E,Сводная!A:A,A14,Сводная!B:B,B14)) -> 0 | F14: =IF(Сводная!C15>0,Сводная!C15,"") ->  | G14: =IF(Сводная!D14>0,Сводная!D14,"") ->  | H14: =IF(Сводная!E14>0,Сводная!E14,"") ->  | I14: =IF(B14=B13,,C14+D14-E14) -> 0
A15: =IF(Сводная!A15<>0,Сводная!A15,IF(Сводная!A14<>0,"ИТОГО:","")) ->  | B15: =IF(Сводная!B15>0,Сводная!B15,"") ->  | E15: =IF(B15=B14,,SUMIFS(Сводная!E:E,Сводная!A:A,A15,Сводная!B:B,B15)) -> 0
A16: =IF(Сводная!A16<>0,Сводная!A16,IF(Сводная!A15<>0,"ИТОГО:","")) ->  | B16: =IF(Сводная!B16>0,Сводная!B16,"") ->  | E16: =IF(B16=B15,,SUMIFS(Сводная!E:E,Сводная!A:A,A16,Сводная!B:B,B16)) -> 0
A17: =IF(Сводная!A17<>0,Сводная!A17,IF(Сводная!A16<>0,"ИТОГО:","")) ->  | B17: =IF(Сводная!B17>0,Сводная!B17,"") ->  | E17: =IF(B17=B16,,SUMIFS(Сводная!E:E,Сводная!A:A,A17,Сводная!B:B,B17)) -> 0
A18: =IF(Сводная!A18<>0,Сводная!A18,"") ->  | B18: =IF(Сводная!B18>0,Сводная!B18,"") ->  | E18: =IF(B18=B17,,SUMIFS(Сводная!E:E,Сводная!A:A,A18,Сводная!B:B,B18)) -> 0
A19: =IF(Сводная!A19<>0,Сводная!A19,"") ->  | B19: =IF(Сводная!B19>0,Сводная!B19,"") ->  | E19: =IF(B19=B18,,SUMIFS(Сводная!E:E,Сводная!A:A,A19,Сводная!B:B,B19)) -> 0

Sheet Взносы
A1: Наименование улицы | B1: № дома | C1: Остаток средств по текущему ремонту на 01.01.2016 г., руб. | D1: Начислено за 2016 г., руб.
A2: 40 лет Победы | B2: 36 | C2: 56241.58
A3: 40 лет Победы | B3: 94 | C3: -52734.9 | D3: 1000
A4: Белинского | B4: 28 | C4: 371412.5698 | D4: 222184.95
A5: Белинского | B5: 30 | C5: 119937.66 | D5: 110705.16

Sheet Списки
A1: Фамилия И.О.
A2: Иванов И.И.
A3: Петров П.П.
A4: Сидоров С.С.

Sheet Улицы
A1: Улица | B1: 40 лет Победы | C1: III Интернационала | D1: Б.Хмельницкого | E1: Белинского | F1: Берёзовая | G1: Больничный пер. | H1: Герцена | I1: Гоголя | J1: Гончарный пер. | K1: Гончарова | L1: Горсовета | M1: Горшенина | N1: Горького | O1: Грибоедова | P1: Димитрова | Q1: Жуковского | R1: Калинина | S1: КВ.УПП | T1: Кирова | U1: Колхозная | V1: Комарова | W1: Комгородок | X1: Комиссариатская | Y1: Комсомола | Z1: Кувина | AA1: Куйбышева | AB1: Ленина | AC1: Лесной пер. | AD1: Мичурина | AE1: Московская | AF1: Нахимова | AG1: Первомайская | AH1: Пирогова | AI1: Пл.Октяб.револ. | AJ1: Покровского | AK1: Полевая | AL1: Свердлова | AM1: Советская | AN1: Стрелецкая | AO1: Стрелка | AP1: Сурский тракт | AQ1: Тельмана | AR1: Транспортная | AS1: Урицкого | AT1: Фабричный пер. | AU1: Фестивальная | AV1: Чайковского | AW1: Чапаева | AX1: Чернышевского | AY1: Школьный проезд | AZ1: Школьный тупик | BA1: Юбилейная | BB1: Ярославская
A2: 40 лет Победы | B2: 7 | C2: 31 | D2: 29 | E2: 28 | F2: 1 | G2: 3 | H2: 29 | I2: 117 | J2: 22 | K2: 24 | L2: 5 | M2: 6 | N2: 4 | O2: 50 | P2: 8 | Q2: 22 | R2: 25 | S2: 10 | T2: 9 | U2: 9 | V2: 1 | W2: 9 | X2: 40 | Y2: 11 | Z2: 44 | AA2: 14 | AB2: 4 | AC2: 1А | AD2: 24 | AE2: 25 | AF2: 2А | AG2: 7 | AH2: 2 | AI2: 10 | AJ2: 7 | AK2: 20 | AL2: 5 | AM2: 14 | AN2: 1 | AO2: 1 | AP2: 2А | AQ2: 8 | AR2: 21 | AS2: 31 | AT2: 3 | AU2: 7А | AV2: 34 | AW2: 3 | AX2: 29 | AY2: 5 | AZ2: 10 | BA2: 2 | BB2: 133
A3: III Интернационала | B3: 9 | C3: 49 | E3: 30 | F3: 2 | G3: 15 | K3: 45 | L3: 30 | M3: 12 | N3: 4А | O3: 52 | Q3: 54 | R3: 27 | S3: 12 | T3: 11 | V3: 2 | X3: 40А | Y3: 13 | Z3: 46 | AB3: 6 | AC3: 4 | AD3: 23 | AE3: 58 | AF3: 42 | AG3: 76 | AH3: 4 | AI3: 13 | AK3: 35 | AL3: 12 | AM3: 37 | AN3: 6 | AO3: 3 | AS3: 33 | AT3: 6 | AU3: 11 | AV3: 36 | AY3: 5А | BA3: 5 | BB3: 135
A4: Б.Хмельницкого | B4: 36 | F4: 3 | G4: 15А | K4: 67 | L4: 32 | M4: 17 | N4: 13 | O4: 58А | Q4: 62 | R4: 29 | T4: 11А | V4: 3 | X4: 42 | Y4: 30 | AB4: 8А | AC4: 6 | AE4: 60 | AF4: 44 | AG4: 78 | AH4: 5А | AK4: 37 | AN4: 8 | AO4: 4 | AT4: 11 | AV4: 38 | BA4: 10 | BB4: 139
A5: Белинского | B5: 94 | F5: 5 | K5: 69 | M5: 22 | N5: 14 | Q5: 83 | T5: 15 | V5: 5А | X5: 71 | Y5: 35 | AB5: 19 | AE5: 66 | AG5: 88 | AH5: 6 | AN5: 14 | AO5: 6 | AV5: 42 | BB5: 141
A6: Берёзовая | B6: 94А | F6: 5А | K6: 79 | M6: 26А | N6: 18 | T6: 25 | V6: 7 | X6: 77 | Y6: 38 | AB6: 27 | AE6: 82 | AG6: 89 | AH6: 8 | AN6: 16 | AO6: 8
A7: Больничный пер. | B7: 96 | K7: 96 | M7: 37 | N7: 22 | T7: 27 | V7: 9 | X7: 79 | Y7: 45 | AB7: 41 | AE7: 105 | AH7: 10 | AN7: 41А | AO7: 10
A8: Герцена | B8: 100 | K8: 115 | M8: 47 | N8: 36 | T8: 31 | V8: 11 | Y8: 48 | AB8: 43 | AE8: 114 | AH8: 14 | AN8: 91 | AO8: 11
A9: Гоголя | B9: 102 | N9: 38 | T9: 36 | V9: 15 | Y9: 50 | AB9: 45 | AE9: 118 | AN9: 100А | AO9: 12
A10: Гончарный пер. | B10: 104 | T10: 60 | V10: 19 | Y10: 58 | AB10: 46 | AE10: 120 | AN10: 100Б | AO10: 13
A11: Гончарова | B11: 106 | T11: 62 | Y11: 60 | AB11: 48 | AE11: 121 | AN11: 100В | AO11: 14
A12: Горсовета | B12: 108 | Y12: 62 | AB12: 66 | AE12: 123 | AN12: 100Г | AO12: 15
A13: Горшенина | B13: 110 | Y13: 65 | AB13: 69 | AE13: 125 | AN13: 109 | AO13: 17
A14: Горького | B14: 112 | Y14: 67 | AB14: 70 | AE14: 173 | AN14: 111 | AO14: 18
A15: Грибоедова | B15: 114 | Y15: 80 | AB15: 76 | AE15: 175 | AO15: 20
A16: Димитрова | Y16: 100 | AB16: 77 | AO16: 21
A17: Жуковского | AB17: 78 | AO17: 22
A18: Калинина | AB18: 85 | AO18: 23
A19: КВ.УПП | AB19: 100 | AO19: 25
A20: Кирова | AB20: 134 | AO20: 27
A21: Колхозная | AB21: 136 | AO21: 28
A22: Комарова | AB22: 138 | AO22: 29
A23: Комгородок | AO23: 30
A24: Комиссариатская | AO24: 31
A25: Комсомола | AO25: 32
A26: Кувина | AO26: 34
A27: Куйбышева | AO27: 36
A28: Ленина | AO28: 37
A29: Лесной пер. | AO29: 40
A30: Мичурина
A31: Московская
A32: Нахимова
A33: Первомайская
A34: Пирогова
A35: Пл.Октяб.револ.
A36: Покровского
A37: Полевая
A38: Свердлова
A39: Советская
A40: Стрелецкая
A41: Стрелка
A42: Сурский тракт
A43: Тельмана
A44: Транспортная
A45: Урицкого
A46: Фабричный пер.
A47: Фестивальная
A48: Чайковского
A49: Чапаева
A50: Чернышевского
A51: Школьный проезд
A52: Школьный тупик
A53: Юбилейная
A54: Ярославская
